bitfinex/quotes_SOLUSD_20250601
["timestamp","ask_amount","ask_price","bid_price","bid_amount"]
[1748787869651,20.41261498,153.29,153.25,60.89261498]
[1748787870057,20.41261498,153.29,153.25,67.41789193]
[1748787870343,20.41261498,153.28,153.25,40.48]
[1748787871459,20.41261498,153.28,153.25,47.00525272]
[1748787871769,20.41261498,153.29,153.25,47.00525272]
[1748787871975,46.41261498,153.3,153.25,67.4178677]
[1748787872139,46.41261498,153.3,153.26,20.41261498]
[1748787873682,52.93579793,153.3,153.25,60.89261498]
[1748787874280,150.6307,153.31,153.26,20.41261498]
[1748787874441,171.04331498,153.31,153.25,57.66527157]
[1748787874640,1.6307,153.31,153.27,20.41261498]
[1748787874889,20.41261498,153.32,153.28,40.46]
[1748787876788,26.93501906,153.32,153.28,40.46]
[1748787877289,6.52240408,153.32,153.28,40.46]
[1748787877586,26.93497662,153.32,153.28,60.87261498]
[1748787878160,20.41261498,153.31,153.28,40.46]
[1748787878675,20.41261498,153.31,153.26,20.41261498]
[1748787878879,20.41261498,153.31,153.28,40.46]
[1748787879995,26.93576114,153.31,153.28,40.46]
[1748787880298,6.52314616,153.31,153.28,40.46]
[1748787883809,6.52314616,153.31,153.28,60.87261498]
[1748787884680,203.07573986,153.35,153.28,60.87261498]
[1748787884994,6.52185908,153.34,153.29,20.41261498]
[1748787885297,6.52185908,153.34,153.3,20.41261498]
[1748787885298,26.93447406,153.34,153.3,20.41261498]
[1748787885497,175.93372587,153.35,153.31,20.41261498]
[1748787885681,175.93372587,153.35,153.32,40.46]
[1748787887291,155.52111089,153.35,153.32,40.46]
[1748787887686,175.93372587,153.35,153.32,40.46]
[1748787888192,26.93372587,153.35,153.32,40.46]
[1748787890202,6.52111089,153.35,153.32,40.46]
[1748787892299,26.93372587,153.35,153.32,40.46]
[1748787893401,6.52111089,153.35,153.32,40.46]
[1748787893781,6.52111089,153.35,153.32,60.87261498]
[1748787894495,27.39066383,153.36,153.32,60.87261498]
[1748787894998,0.4572766,153.36,153.33,20.41261498]
[1748787895205,0.4572766,153.36,153.32,40.46]
[1748787895206,0.4572766,153.36,153.35,20.41261498]
[1748787895413,0.4572766,153.36,153.35,71.49261498]
[1748787896594,0.4572766,153.36,153.35,78.0136453]
[1748787897106,0.4572766,153.36,153.35,96.66329416]
[1748787897313,0.4572766,153.36,153.35,123.43930914]
[1748787898189,0.4572766,153.36,153.35,149.43930914]
[1748787900507,0.4572766,153.36,153.35,122.66329416]
[1748787901087,0.4572766,153.36,153.35,143.07590914]
[1748787901614,1.6521,153.45,153.35,159.37848494]
[1748787901816,1.6521,153.45,153.42,20.41261498]
[1748787902129,1.6521,153.45,153.43,40.42]
[1748787903123,1.6521,153.45,153.43,60.83261498]
[1748787903322,177.53862183,153.49,153.44,20.41261498]
[1748787903620,22.71226127,153.5,153.47,20.41261498]
[1748787903822,22.71226127,153.5,153.47,60.83261498]
[1748787905221,20.41261498,153.49,153.47,40.42]
[1748787905394,26.92781457,153.49,153.47,40.42]
[1748787905816,20.41261498,153.48,153.41,26.0]
[1748787906008,20.41261498,153.47,153.44,10.64]
[1748787906203,20.41261498,153.47,153.45,40.42]
[1748787906710,20.41261498,153.47,153.46,40.4]
[1748787906917,20.41261498,153.47,153.43,20.41261498]
[1748787907118,20.41261498,153.47,153.44,51.04]
[1748787907704,6.51635605,153.46,153.43,20.41261498]
[1748787907916,6.51635605,153.46,153.44,51.04]
[1748787910898,6.5155069,153.48,153.45,20.41261498]
[1748787911219,6.5155069,153.48,153.46,20.41261498]
[1748787911399,6.5155069,153.48,153.47,40.4]
[1748787912511,6.51508241,153.49,153.47,60.81261498]
[1748787913919,22.71226127,153.5,153.48,20.41261498]
[1748787913920,6.51480428,153.5,153.48,20.41261498]
[1748787914120,6.51480428,153.5,153.49,10.62]
[1748787914310,6.51480428,153.5,153.49,31.03261498]
[1748787914728,18.31245419,153.52,153.49,31.03261498]
[1748787914729,6.5142336,153.51,153.49,31.03261498]
[1748787914913,6.5142336,153.51,153.5,40.4]
[1748787915801,6.5142336,153.51,153.5,15.4]
[1748787916104,6.5142336,153.51,153.5,35.81261498]
[1748787916717,6.51380927,153.52,153.5,35.81261498]
[1748787916916,6.51380927,153.52,153.51,20.41261498]
[1748787917521,26.92642425,153.52,153.45,26.0]
[1748787917827,6.51380927,153.52,153.48,20.41261498]
[1748787918030,6.51380927,153.52,153.5,20.41261498]
[1748787918217,20.41261498,153.55,153.51,10.62]
[1748787918410,6.51296079,153.54,153.51,31.03261498]
[1748787918934,6.51253663,153.55,153.51,31.03261498]
[1748787919114,6.51253663,153.55,153.54,20.41261498]
[1748787920014,6.51253663,153.55,153.53,20.41261498]
[1748787920237,8.17157389,153.57,153.54,20.41261498]
[1748787920416,8.17157389,153.57,153.55,40.38]
[1748787920739,28.58418887,153.57,153.55,40.38]
[1748787920924,20.41261498,153.56,153.55,40.38]
[1748787921128,20.41261498,153.56,153.53,40.38]
[1748787922241,20.41261498,153.55,153.53,51.0]
[1748787923051,6.51296079,153.54,153.53,10.62]
[1748787923945,26.92557577,153.54,153.5,20.41261498]
[1748787924146,26.92557577,153.54,153.52,10.62]
[1748787924358,6.51296079,153.54,153.52,10.62]
[1748787924652,6.51296079,153.54,153.52,31.03261498]
[1748787925018,6.51211252,153.56,153.52,31.03261498]
[1748787925262,17.93516711,153.61,153.55,20.41261498]
[1748787925562,64.34778209,153.61,153.56,60.79261498]
[1748787925741,38.34778209,153.61,153.57,10.62]
[1748787926059,20.41261498,153.6,153.57,10.62]
[1748787926257,20.41261498,153.59,153.57,10.62]
[1748787926466,20.41261498,153.59,153.55,51.0]
[1748787927025,20.41261498,153.59,153.55,71.41261498]
[1748787927242,43.1990733,153.6,153.55,71.41261498]
[1748787927731,43.1990733,153.6,153.56,20.41261498]
[1748787927941,43.1990733,153.6,153.55,71.41261498]
[1748787928434,20.41261498,153.58,153.55,51.0]
[1748787928619,22.78645832,153.6,153.56,20.41261498]
[1748787929329,43.1990733,153.6,153.55,71.41261498]
[1748787930341,20.41261498,153.56,153.53,10.62]
[1748787930544,43.1990733,153.6,153.53,50.98]
[1748787930850,20.41261498,153.57,153.53,50.98]
[1748787931346,22.78645832,153.6,153.53,50.98]
[1748787931532,20.41261498,153.57,153.53,50.98]
[1748787931740,20.41261498,153.56,153.53,50.98]
[1748787931939,20.41261498,153.54,153.53,10.62]
[1748787932341,20.41261498,153.54,153.49,10.62]
[1748787932554,20.41261498,153.53,153.49,50.98]
[1748787932767,20.41261498,153.53,153.49,71.39261498]
[1748787933445,6.51380927,153.52,153.49,71.39261498]
[1748787934035,6.51380927,153.52,153.5,20.41261498]
[1748787934732,6.51380927,153.52,153.49,71.39261498]
[1748787934951,6.51380927,153.52,153.49,50.98]
[1748787935143,6.51380927,153.52,153.49,10.62]
[1748787935555,6.51380927,153.52,153.49,31.03261498]
[1748787936639,6.51380927,153.52,153.49,10.62]
[1748787936640,22.79833245,153.52,153.49,10.62]
[1748787936962,20.41261498,153.5,153.49,10.62]
[1748787937280,20.41261498,153.5,153.45,97.39261498]
[1748787937569,20.41261498,153.49,153.45,97.39261498]
[1748787937755,6.5155069,153.48,153.45,57.03261498]
[1748787938069,6.5155069,153.48,153.46,20.41261498]
[1748787938269,6.5155069,153.48,153.45,36.62]
[1748787938270,6.5155069,153.48,153.47,20.41261498]
[1748787938568,6.5142336,153.51,153.47,60.77261498]
[1748787938870,6.5142336,153.51,153.49,20.41261498]
[1748787939946,6.51380927,153.52,153.49,20.41261498]
[1748787940455,6.51380927,153.52,153.48,60.77261498]
[1748787940958,6.51380927,153.52,153.49,20.41261498]
[1748787941832,6.51380927,153.52,153.48,60.77261498]
[1748787942233,43.21094743,153.52,153.48,40.36]
[1748787942468,22.79833245,153.52,153.48,40.36]
[1748787942769,16.27902933,153.58,153.49,20.41261498]
[1748787942933,20.41261498,153.57,153.52,20.41261498]
[1748787943572,36.69164431,153.58,153.53,20.41261498]
[1748787943773,8.17624054,153.59,153.54,20.41261498]
[1748787943936,8.17624054,153.59,153.55,20.41261498]
[1748787944546,28.58885552,153.59,153.55,20.41261498]
[1748787945251,28.58885552,153.59,153.54,60.77261498]
[1748787950238,20.41261498,153.58,153.54,40.36]
[1748787951045,20.41261498,153.57,153.54,40.36]
[1748787952147,6.51211252,153.56,153.54,40.36]
[1748787953349,20.41261498,153.58,153.54,40.36]
[1748787953554,38.35511635,153.59,153.54,60.77261498]
[1748787954067,6.51126448,153.58,153.54,60.77261498]
[1748787954576,6.51126448,153.58,153.56,20.41261498]
[1748787954759,6.51126448,153.58,153.55,20.41261498]
[1748787954957,6.51126448,153.58,153.54,60.77261498]
[1748787955660,26.92387946,153.58,153.54,60.77261498]
[1748787955987,20.41261498,153.57,153.53,10.62]
[1748787956273,20.41261498,153.57,153.53,31.03261498]
[1748787956571,6.51211252,153.56,153.53,31.03261498]
[1748787957581,20.41261498,153.55,153.53,10.62]
[1748787958290,20.41261498,153.55,153.5,20.41261498]
[1748787958648,36.6928963,153.56,153.51,20.41261498]
[1748787959356,20.41261498,153.55,153.51,20.41261498]
[1748787960173,36.6928963,153.56,153.51,20.41261498]
[1748787960373,26.92387946,153.58,153.53,20.41261498]
[1748787960672,6.51126448,153.58,153.53,20.41261498]
[1748787960966,6.51126448,153.58,153.54,20.41261498]
[1748787960967,26.92387946,153.58,153.54,20.41261498]
[1748787961546,6.51126448,153.58,153.54,20.41261498]
[1748787965850,26.92387946,153.58,153.54,20.41261498]
[1748787966045,20.41261498,153.57,153.53,71.39261498]
[1748787966272,6.51211252,153.56,153.53,71.39261498]
[1748787967670,6.51211252,153.56,153.54,20.41261498]
[1748787968069,6.51211252,153.56,153.53,71.39261498]
[1748787968456,6.51168848,153.57,153.53,71.39261498]
[1748787971964,26.92430346,153.57,153.53,50.98]
[1748787972179,26.92430346,153.57,153.53,71.39261498]
[1748787972957,43.20352466,153.57,153.53,20.41261498]
[1748787973358,43.20352466,153.57,153.52,71.37261498]
[1748787973959,20.41261498,153.56,153.52,20.41261498]
[1748787974180,20.41261498,153.55,153.51,10.62]
[1748787974366,20.41261498,153.55,153.51,50.96]
[1748787974973,6.51296079,153.54,153.51,10.62]
[1748787975282,6.51296079,153.54,153.51,31.03261498]
[1748787976282,20.41261498,153.55,153.51,31.03261498]
[1748787977286,6.51296079,153.54,153.51,10.62]
[1748787977480,6.51296079,153.54,153.51,31.03261498]
[1748787978274,6.51296079,153.54,153.51,10.62]
[1748787978781,26.92557577,153.54,153.51,10.62]
[1748787978981,6.51296079,153.54,153.51,10.62]
[1748787983474,20.41261498,153.53,153.51,10.62]
[1748787983676,20.41261498,153.52,153.47,10.62]
[1748787983984,20.41261498,153.52,153.48,20.41261498]
[1748787984875,20.41261498,153.52,153.47,71.37261498]
[1748787985288,20.41261498,153.51,153.47,31.03261498]
[1748787985465,6.51465798,153.5,153.47,31.03261498]
[1748787986282,26.92727296,153.5,153.47,10.62]
[1748787987490,20.41261498,153.49,153.47,10.62]
[1748787987662,6.51465798,153.5,153.47,10.62]
[1748787987663,20.41261498,153.48,153.47,10.62]
[1748787987863,20.41261498,153.48,153.43,124.79261498]
[1748787988287,20.41261498,153.48,153.44,20.41261498]
[1748787989281,22.80130293,153.5,153.44,20.41261498]
[1748787989467,20.41261498,153.49,153.44,20.41261498]
[1748787989688,29.81520762,153.53,153.47,20.41261498]
[1748787989877,20.41261498,153.52,153.47,20.41261498]
[1748787990496,20.41261498,153.51,153.47,20.41261498]
[1748787990790,6.51465798,153.5,153.46,20.41261498]
[1748787991789,6.51380927,153.52,153.46,20.41261498]
[1748787991995,20.41261498,153.51,153.46,20.41261498]
[1748787993473,20.41261498,153.51,153.47,20.41261498]
[1748787993673,26.92642425,153.52,153.47,20.41261498]
[1748787993873,6.51380927,153.52,153.48,20.41261498]
[1748787994075,26.92642425,153.52,153.48,20.41261498]
[1748787994601,20.41261498,153.5,153.44,40.36]
[1748787994779,20.41261498,153.5,153.45,20.41261498]
[1748787995185,20.41261498,153.49,153.45,20.41261498]
[1748787995877,26.92786046,153.49,153.45,20.41261498]
[1748787996576,26.92786046,153.49,153.43,130.38]
[1748787996897,26.92786046,153.49,153.45,20.41261498]
[1748787997482,20.41261498,153.48,153.44,60.77261498]
[1748787997684,20.41261498,153.48,153.43,191.15261498]
[1748787997899,26.92854643,153.47,153.43,104.38]
[1748787998098,20.41261498,153.46,153.43,104.38]
[1748787999286,6.51593145,153.47,153.43,104.38]
[1748787999489,26.92854643,153.47,153.43,104.38]
[1748788000089,26.92854643,153.47,153.43,124.79261498]
[1748788000605,6.51593145,153.47,153.43,124.79261498]
[1748788000786,26.92854643,153.47,153.43,124.79261498]
[1748788001490,26.92854643,153.47,153.43,104.38]
[1748788002492,20.41261498,153.46,153.43,10.62]
[1748788002886,20.41261498,153.44,153.39,31.01261498]
[1748788003087,20.41261498,153.43,153.39,31.01261498]
[1748788003281,20.41261498,153.44,153.39,31.01261498]
[1748788003697,24.46976008,153.47,153.4,20.41261498]
[1748788003698,20.41261498,153.45,153.4,20.41261498]
[1748788004305,6.51720542,153.44,153.4,20.41261498]
[1748788006308,26.9298204,153.44,153.4,20.41261498]
[1748788006884,26.9298204,153.44,153.39,31.01261498]
[1748788008200,26.9298204,153.44,153.4,20.41261498]
[1748788008709,26.9298204,153.44,153.39,31.01261498]
[1748788008886,20.41261498,153.43,153.39,31.01261498]
[1748788010192,20.41261498,153.42,153.39,10.6]
[1748788010394,20.41261498,153.43,153.39,10.6]
[1748788010617,20.41261498,153.42,153.39,10.6]
[1748788010914,20.41261498,153.43,153.39,10.6]
[1748788011097,6.51805501,153.42,153.39,10.6]
[1748788011295,6.51775895,153.43,153.4,20.41261498]
[1748788011500,6.51736874,153.44,153.41,20.41261498]
[1748788011800,22.07661498,153.47,153.43,20.41261498]
[1748788013107,6.51604259,153.47,153.43,20.41261498]
[1748788014491,26.92865757,153.47,153.43,20.41261498]
[1748788015917,6.5155069,153.48,153.43,20.41261498]
[1748788016213,20.41261498,153.47,153.43,20.41261498]
[1748788018314,26.92888546,153.47,153.43,20.41261498]
[1748788019298,6.5155069,153.48,153.43,20.41261498]
[1748788019498,26.92812188,153.48,153.43,20.41261498]
[1748788019719,20.41261498,153.47,153.43,20.41261498]
[1748788020497,20.41261498,153.47,153.42,10.62]
[1748788020498,6.51635605,153.46,153.42,10.62]
[1748788020698,6.51635605,153.46,153.43,20.41261498]
[1748788020998,6.51635605,153.46,153.42,31.03261498]
[1748788022096,20.41261498,153.44,153.42,10.62]
[1748788022292,6.51635605,153.46,153.38,10.62]
[1748788022293,20.41261498,153.43,153.38,10.62]
[1748788022489,26.93092933,153.42,153.38,10.62]
[1748788022723,26.93092933,153.42,153.38,50.98]
[1748788023017,26.93092933,153.42,153.38,71.39261498]
[1748788023229,6.51831435,153.42,153.38,31.03261498]
[1748788026104,26.93040481,153.43,153.39,20.41261498]
[1748788026302,22.72539704,153.49,153.42,20.41261498]
[1748788026511,20.41261498,153.48,153.43,20.41261498]
[1748788026715,22.72539704,153.49,153.43,31.03261498]
[1748788027012,20.41261498,153.48,153.43,31.03261498]
[1748788027592,26.92812188,153.48,153.43,31.03261498]
[1748788028423,20.41261498,153.47,153.43,31.03261498]
[1748788028722,20.41261498,153.47,153.43,37.55008971]
[1748788028918,6.51521728,153.49,153.45,20.41261498]
[1748788029095,26.92783226,153.49,153.45,20.41261498]
[1748788029496,26.92783226,153.49,153.44,20.41261498]
[1748788029713,20.41261498,153.48,153.44,20.41261498]
[1748788030025,20.41261498,153.48,153.43,31.03261498]
[1748788030324,20.41261498,153.47,153.43,10.62]
[1748788030995,6.51521728,153.49,153.43,10.62]
[1748788031195,32.55165431,153.61,153.44,47.11986926]
[1748788031196,6.1014,153.57,153.44,47.11986926]
[1748788031417,6.1014,153.57,153.53,20.41261498]
[1748788031418,6.5117739,153.57,153.53,20.41261498]
[1748788031805,26.92438888,153.57,153.53,20.41261498]
[1748788032002,6.5117739,153.57,153.53,20.41261498]
[1748788032214,26.92438888,153.57,153.52,71.67261498]
[1748788034314,6.5117739,153.57,153.52,71.67261498]
[1748788034629,20.41261498,153.55,153.52,51.26]
[1748788035127,20.41261498,153.57,153.52,71.67261498]
[1748788035729,20.41261498,153.54,153.52,10.6]
[1748788036032,20.41261498,153.53,153.52,10.6]
[1748788036924,26.92599998,153.53,153.52,10.6]
[1748788037428,26.92599998,153.53,153.48,51.26]
[1748788037598,20.41261498,153.51,153.48,51.26]
[1748788038002,20.41261498,153.52,153.48,51.26]
[1748788038816,26.92643424,153.52,153.48,51.26]
[1748788039535,20.41261498,153.52,153.48,71.67261498]
[1748788039718,20.41261498,153.52,153.48,31.01261498]
[1748788039910,20.41261498,153.52,153.48,71.69261498]
[1748788041206,26.92646423,153.52,153.48,51.28]
[1748788041512,26.92646423,153.52,153.45,119.84]
[1748788041513,20.41261498,153.5,153.46,20.41261498]
[1748788041726,20.41261498,153.48,153.46,10.6]
[1748788042610,1.5912,153.51,153.46,10.6]
[1748788042611,20.41261498,153.49,153.46,10.6]
[1748788044329,20.41261498,153.48,153.46,10.6]
[1748788044532,20.41261498,153.47,153.46,10.6]
[1748788044827,26.92883499,153.47,153.42,36.6]
[1748788045029,20.41261498,153.46,153.43,40.62]
[1748788045621,20.41261498,153.46,153.41,26.93099498]
[1748788045929,6.51622001,153.47,153.42,51.2]
[1748788045930,20.41261498,153.44,153.42,51.2]
[1748788046433,6.51622001,153.47,153.42,51.2]
[1748788046641,20.41261498,153.45,153.42,51.2]
[1748788046821,20.41261498,153.45,153.42,10.6]
[1748788047135,20.41261498,153.45,153.42,51.2]
[1748788048531,6.51465798,153.5,153.42,78.13052102]
[1748788048836,20.41261498,153.48,153.43,20.41261498]
[1748788050334,26.92839825,153.48,153.43,20.41261498]
[1748788050713,20.41261498,153.47,153.43,20.41261498]
[1748788051115,20.41261498,153.47,153.42,78.13052102]
[1748788051406,20.41261498,153.47,153.42,71.61261498]
[1748788051916,20.41261498,153.47,153.42,78.13062083]
[1748788052521,20.41261498,153.44,153.42,10.6]
[1748788052824,20.41261498,153.45,153.42,10.6]
[1748788053214,20.41261498,153.46,153.42,31.01261498]
[1748788053418,6.51557968,153.48,153.44,20.41261498]
[1748788053830,26.92819466,153.48,153.43,20.41261498]
[1748788055021,20.41261498,153.46,153.42,10.6]
[1748788055331,20.41261498,153.45,153.42,10.6]
[1748788056835,26.92930023,153.46,153.42,10.6]
[1748788057213,6.5142336,153.51,153.45,26.0]
[1748788057408,6.5142336,153.51,153.47,20.41261498]
[1748788057640,26.92684858,153.51,153.47,20.41261498]
[1748788058335,6.5142336,153.51,153.47,20.41261498]
[1748788058537,26.92684858,153.51,153.47,20.41261498]
[1748788060920,20.41261498,153.5,153.46,20.41261498]
[1748788061240,20.41261498,153.48,153.43,67.39022246]
[1748788062321,20.41261498,153.47,153.42,10.6]
[1748788062522,20.41261498,153.45,153.42,10.6]
[1748788062829,20.41261498,153.47,153.42,31.01261498]
[1748788063036,20.41261498,153.47,153.43,20.41261498]
[1748788063933,20.41261498,153.47,153.42,71.47261498]
[1748788064245,8.03712866,153.48,153.43,20.41261498]
[1748788064453,28.44974364,153.48,153.43,20.41261498]
[1748788067154,28.44974364,153.48,153.44,20.41261498]
[1748788067944,26.9285764,153.47,153.42,57.57789936]
[1748788068149,26.9285764,153.47,153.43,20.41261498]
[1748788068450,28.44965511,153.48,153.44,20.41261498]
[1748788069060,20.41261498,153.48,153.44,20.41261498]
[1748788069234,26.92785255,153.49,153.44,20.41261498]
[1748788069930,20.41261498,153.48,153.44,20.41261498]
[1748788070339,26.92785255,153.49,153.44,20.41261498]
[1748788071433,26.92785255,153.49,153.44,31.09261498]
[1748788072446,6.51523757,153.49,153.45,20.41261498]
[1748788072658,26.92684858,153.51,153.47,20.41261498]
[1748788072863,168.68418977,153.52,153.48,20.41261498]
[1748788073027,16.28128465,153.56,153.49,20.41261498]
[1748788073028,6.51351871,153.53,153.49,20.41261498]
[1748788074742,38.72357925,153.54,153.49,26.92765132]
[1748788074973,18.31096427,153.54,153.5,20.41261498]
[1748788078245,18.31096427,153.54,153.51,20.41261498]
[1748788079547,18.31096427,153.54,153.49,10.68]
[1748788079753,20.41261498,153.52,153.49,10.68]
[1748788080463,20.41261498,153.51,153.47,20.41261498]
[1748788080649,20.41261498,153.51,153.46,20.41261498]
[1748788081145,20.41261498,153.51,153.45,51.04]
[1748788081146,20.41261498,153.51,153.47,20.41261498]
[1748788081639,26.92705824,153.51,153.47,20.41261498]
[1748788084059,26.92705824,153.51,153.42,18.64964886]
[1748788084060,20.41261498,153.48,153.42,10.68]
[1748788084270,1.5762,153.5,153.42,10.68]
[1748788084271,20.41261498,153.45,153.42,10.68]
[1748788084757,20.41261498,153.43,153.42,10.68]
[1748788085269,20.41261498,153.44,153.39,60.75261498]
[1748788085515,193.64964886,153.49,153.39,60.75261498]
[1748788085657,20.41261498,153.44,153.39,60.75261498]
[1748788085855,20.41261498,153.44,153.39,20.41261498]
[1748788086059,6.51763018,153.43,153.39,20.41261498]
[1748788086567,6.51763018,153.43,153.4,20.41261498]
[1748788088274,26.9298204,153.44,153.4,20.41261498]
[1748788088658,26.9298204,153.44,153.38,51.04]
[1748788088659,43.22283395,153.44,153.39,20.41261498]
[1748788089879,43.22283395,153.44,153.4,20.41261498]
[1748788090084,22.81021897,153.44,153.4,20.41261498]
[1748788090253,6.51720542,153.44,153.41,20.41261498]
[1748788090457,6.51720542,153.44,153.42,20.41261498]
[1748788090691,6.51680975,153.45,153.43,20.41261498]
[1748788091957,17.86356554,153.5,153.43,20.41261498]
[1748788091958,38.27618052,153.5,153.44,20.41261498]
[1748788092275,6.51508241,153.49,153.46,20.41261498]
[1748788095187,6.51508241,153.49,153.45,20.41261498]
[1748788096587,26.92769739,153.49,153.45,20.41261498]
[1748788097461,6.51508241,153.49,153.46,20.41261498]
[1748788098185,6.51508241,153.49,153.45,20.41261498]
[1748788098383,38.27618052,153.5,153.43,17.1175544]
[1748788098384,6.51479662,153.5,153.48,20.41261498]
[1748788098587,6.51479662,153.5,153.47,20.41261498]
[1748788099562,6.51479662,153.5,153.48,20.41261498]
[1748788100069,6.51395125,153.52,153.49,20.41261498]
[1748788100282,6.51395125,153.52,153.5,20.41261498]
[1748788100474,6.51395125,153.52,153.49,20.41261498]
[1748788101167,6.513385,153.53,153.49,20.41261498]
[1748788101579,6.51309392,153.54,153.51,20.41261498]
[1748788101883,6.51126448,153.58,153.53,20.41261498]
[1748788102192,6.51126448,153.58,153.55,20.41261498]
[1748788102563,6.51126448,153.58,153.54,31.01261498]
[1748788102965,6.51126448,153.58,153.55,20.41261498]
[1748788103158,17.8744904,153.62,153.56,20.41261498]
[1748788103159,1.5997,153.62,153.56,20.41261498]
[1748788103364,6.50872168,153.64,153.56,6.51203319]
[1748788103772,6.50872168,153.64,153.6,20.41261498]
[1748788103971,26.92133666,153.64,153.6,20.41261498]
[1748788104276,5.36693077,153.66,153.58,66.5]
[1748788104481,5.36693077,153.66,153.63,20.41261498]
[1748788104681,3.76723077,153.66,153.65,20.41261498]
[1748788105396,3.76723077,153.66,153.64,10.6]
[1748788105591,3.76723077,153.66,153.65,39.06226384]
[1748788105773,3.76723077,153.66,153.65,20.41261498]
[1748788106087,16.2585582,153.77,153.69,26.0]
[1748788106287,1.5997,153.79,153.75,20.41261498]
[1748788106609,1.5997,153.79,153.7,18.64964886]
[1748788106610,12.77413777,153.8,153.78,20.41261498]
[1748788106889,1.5997,153.85,153.79,20.41261498]
[1748788106890,6.50026001,153.84,153.79,20.41261498]
[1748788107063,6.50026001,153.84,153.81,20.41261498]
[1748788107260,6.50026001,153.84,153.77,18.64964886]
[1748788107261,22.74842988,153.86,153.8,30.41554366]
[1748788107465,22.74842988,153.86,153.77,18.64964886]
[1748788107681,53.16397354,153.86,153.81,30.41554366]
[1748788108197,22.74842988,153.86,153.78,40.74]
[1748788108495,30.41554366,153.85,153.8,30.41554366]
[1748788108907,30.41554366,153.82,153.77,30.41554366]
[1748788109065,30.41554366,153.82,153.75,40.74]
[1748788109268,30.41554366,153.82,153.78,30.41554366]
[1748788109694,30.41554366,153.82,153.77,30.41554366]
[1748788110507,30.41554366,153.81,153.76,30.41554366]
[1748788110676,30.41554366,153.78,153.72,10.6]
[1748788110888,32.01524366,153.81,153.72,10.6]
[1748788111080,30.41554366,153.76,153.72,41.01554366]
[1748788111287,6.50406504,153.75,153.72,41.01554366]
[1748788112707,36.91918569,153.76,153.72,41.01554366]
[1748788113583,36.91918569,153.76,153.72,10.6]
[1748788113777,36.91918569,153.76,153.72,41.01554366]
[1748788114107,6.50364203,153.76,153.72,41.01554366]
[1748788114279,6.50364203,153.76,153.73,30.41554366]
[1748788114827,30.41554366,153.75,153.72,10.6]
[1748788114989,22.76274712,153.76,153.72,10.6]
[1748788115314,30.41554366,153.75,153.72,10.6]
[1748788115479,30.41554366,153.74,153.72,10.6]
[1748788115682,30.41554366,153.73,153.69,30.41554366]
[1748788115886,30.41554366,153.71,153.68,10.6]
[1748788116092,30.41554366,153.72,153.68,10.6]
[1748788116285,30.41554366,153.73,153.68,41.01554366]
[1748788116904,6.50533437,153.72,153.68,41.01554366]
[1748788117199,6.50533437,153.72,153.69,30.41554366]
[1748788117603,6.50533437,153.72,153.68,41.01554366]
[1748788117789,36.92087803,153.72,153.68,41.01554366]
[1748788118193,36.92087803,153.72,153.68,10.6]
[1748788118398,36.92087803,153.72,153.68,41.01554366]
[1748788118691,36.92087803,153.72,153.68,10.6]
[1748788118692,30.41554366,153.71,153.68,10.6]
[1748788118891,6.50618087,153.7,153.68,10.6]
[1748788119302,36.92172453,153.7,153.68,10.6]
[1748788119608,6.50618087,153.7,153.68,10.6]
[1748788120483,6.50618087,153.7,153.68,41.01554366]
[1748788120784,6.50533437,153.72,153.69,30.41554366]
[1748788120994,6.5049112,153.73,153.69,30.41554366]
[1748788121483,30.41554366,153.71,153.68,10.6]
[1748788121683,30.41554366,153.7,153.65,30.41554366]
[1748788121884,30.41554366,153.66,153.64,10.84]
[1748788122083,30.41554366,153.68,153.64,10.84]
[1748788122284,30.41554366,153.69,153.64,41.25554366]
[1748788122989,6.50702758,153.68,153.64,41.25554366]
[1748788124699,36.92257124,153.68,153.64,10.84]
[1748788126925,36.92257124,153.68,153.64,41.25554366]
[1748788127591,30.41554366,153.7,153.65,30.41554366]
[1748788127792,7.8649,153.72,153.66,30.41554366]
[1748788127793,1.5226,153.72,153.66,30.41554366]
[1748788127997,36.9196087,153.75,153.71,30.41554366]
[1748788128202,6.50406504,153.75,153.71,30.41554366]
[1748788128691,1.666,153.76,153.73,30.41554366]
[1748788128918,22.43017594,153.8,153.7,77.5]
[1748788128919,22.43017594,153.8,153.75,30.41554366]
[1748788129125,6.50237336,153.79,153.75,30.41554366]
[1748788129320,36.91791702,153.79,153.74,30.41554366]
[1748788131406,6.50237336,153.79,153.75,30.41554366]
[1748788131919,6.50237336,153.79,153.71,18.64964886]
[1748788131920,36.91791702,153.79,153.74,30.41554366]
[1748788133507,30.41554366,153.77,153.73,30.41554366]
[1748788134022,30.41554366,153.77,153.72,30.41554366]